{"text_format":"1","workbook":"xlsx","n_sheets":11,"sheets":["Startpagina","opgelegde NER-boetes","NER 2020","dieren 2020","overschrijding 2020","NER 2021","dieren 2021","overschrijding 2021","compensatie 20+21","compensatie","Blad1"],"not_rendered":{"charts":0,"images":1,"macros":1,"external_links":1,"defined_names":4,"comments":0,"pivot_tables":0},"unopened":[],"bounds":{"document_bytes":16777216,"sheet_cells":100000,"rows_first":2000,"rows_last":500,"rows_between":2000,"halvings":0,"cell_chars":16384,"cell_head_chars":4096},"cells_cut":0,"cells_raw":0,"read":"whole","date_system":"1900"}

{"sheet":"Startpagina","index":0,"n_rows":34,"n_cols":15,"rows_kept":34,"cut":false,"hidden":false,"merged":[[1,1,1,14],[2,1,2,14],[3,13,3,14],[3,1,3,6],[23,4,23,10],[7,1,7,14],[15,4,15,10],[13,4,13,10],[11,4,11,10],[17,4,17,10],[21,4,21,10],[19,4,19,10],[29,1,29,14],[31,1,31,6],[33,1,33,6],[25,4,25,10],[31,7,31,8],[33,7,33,8],[32,10,32,18]]}
[]
[]
[null,"BASsistent\nNER-boete 2020 & compensatie "]
[null,"Vlaamse Landmaatschappij, 2021. Versie 1.0 dd 19/07/2021",null,null,null,null,null,null,null,null,null,null,"Klik hier voor de","gebruiksvoorwaarden"]
[]
[null,null,null,null,null,null,null,null,null,null,"Druk op de gewenste knop"]
[]
[null,"Menu"]
[]
[null,"Belangrijk! Volg bij het invullen van deze BASsistent de stappen zoals ze vermeld worden in dit menu."]
[]
[null,null,1,null,"Vul de gegevens over de opgelegde NER-boetes in.",null,null,null,null,null,null,null,null,null,{"$f":"IF(OR(AND('opgelegde NER-boetes'!M9=\"neen\",OR('opgelegde NER-boetes'!M11=\"ja\",'opgelegde NER-boetes'!M13=\"ja\",'opgelegde NER-boetes'!M15=\"ja\",'opgelegde NER-boetes'!M17=\"ja\")),AND('opgelegde NER-boetes'!M15=\"neen\",OR('opgelegde NER-boetes'!M17=\"ja\"))),\"onmogelijke combinatie ingevuld\",IF(OR('opgelegde NER-boetes'!O9=\"Ga terug naar het menu\",'opgelegde NER-boetes'!O15=\"Ga terug naar het menu\",'opgelegde NER-boetes'!O17=\"Ga terug naar het menu\"),\"opgelegde NER-boetes ingevuld\",IF(AND('opgelegde NER-boetes'!M9<>\"ja\",'opgelegde NER-boetes'!M9<>\"neen\",'opgelegde NER-boetes'!M11<>\"ja\",'opgelegde NER-boetes'!M11<>\"neen\",'opgelegde NER-boetes'!M15<>\"ja\",'opgelegde NER-boetes'!M15<>\"neen\",'opgelegde NER-boetes'!M17<>\"ja\",'opgelegde NER-boetes'!M17<>\"neen\"),\" leeg\",\"opgelegde NER-boetes niet volledig ingevuld\")))","v":" leeg"}]
[]
[null,null,2,null,"Vul de toegekende NER in 2020 in. ",null,null,null,null,null,null,null,null,null,{"$f":"IF(SUM('NER 2020'!G12:G22)>0,\"NER ingevuld\", \"leeg\")","v":"leeg"}]
[]
[null,null,3,null,"Vul het overzicht in van de dieren die u gehouden hebt in 2020.",null,null,null,null,null,null,null,null,null,{"$f":"IF('dieren 2020'!F66>0,\"dieren ingevuld\", \"leeg\")","v":"leeg"}]
[]
[null,null,4,null,"Bekijk de eventuele overschrijding van de NER 2020.",null,null,null,null,null,null,null,null,null,{"$f":"IF('overschrijding 2020'!D6>0,'overschrijding 2020'!D6,\"geen boete\")","v":"geen boete"}]
[]
[null,null,5,null,"Vul de toegekende NER in 2021 in. ",null,null,null,null,null,null,null,null,null,{"$f":"IF(SUM('NER 2021'!G12:G22)>0,\"NER ingevuld\", \"leeg\")","v":"leeg"}]
[]
[null,null,6,null,"Vul de prognose in van de gehouden dieren in 2021.",null,null,null,null,null,null,null,null,null,{"$f":"IF('dieren 2021'!F66>0,\"dieren ingevuld\", \"leeg\")","v":"leeg"}]
[]
[null,null,7,null,"Bekijk de eventuele overschrijding van de NER 2021.",null,null,null,null,null,null,null,null,null,{"$f":"IF('overschrijding 2021'!D6>0,'overschrijding 2021'!D6,\"geen boete\")","v":"geen boete"}]
[]
[null,null,8,null,"Bekijk het resultaat na de compensatie 2020 - 2021."]
[]
[]
[]
[null,"Resultaat"]
[]
[null,{"$f":"IF('compensatie 20+21'!B9=\"U hebt een boete gekregen voor 2019 en compensatie aangevraagd voor productiejaar 2019.\",\"Boete 2019:\",IF(O18=\"geen boete\",\"Boete 2020:\",\"Boete 2020 en 2021 samen, zonder compensatie:\"))","v":"Boete 2020:"},null,null,null,null,null,{"$f":"IF('compensatie 20+21'!B9=\"U hebt een boete gekregen voor 2019 en compensatie aangevraagd voor productiejaar 2019.\",O18,IF($O$18=\"geen boete\",O18,'compensatie 20+21'!G41))","v":"geen boete"}]
[null,null,null,null,null,null,null,null,null,null,{"$f":"IF('compensatie 20+21'!B9=\"U hebt een boete gekregen voor 2019 en compensatie aangevraagd voor productiejaar 2019.\",\"U kunt geen compensatie meer vragen voor productiejaar 2020\",IF(Startpagina!O18=\"Geen boete\",\"De compensatieregeling is niet van toepassing\",IF($H$34>=$H$32,\"U vraagt beter geen compensatie.\",\"Het is voordelig om compensatie te vragen.\")))","v":"De compensatieregeling is niet van toepassing"}]
[null,{"$f":"IF('compensatie 20+21'!B9=\"U hebt een boete gekregen voor 2019 en compensatie aangevraagd voor productiejaar 2019.\",\"Boete 2021:\",IF(O18=\"geen boete\",\"Boete 2021:\",\"Nieuwe boete 2020 en 2021 samen, met compensatie:\"))","v":"Boete 2021:"},null,null,null,null,null,{"$f":"IF('compensatie 20+21'!B9=\"U hebt een boete gekregen voor 2019 en compensatie aangevraagd voor productiejaar 2019.\",O24,IF($O$18=\"geen boete\",O24,'compensatie 20+21'!G44))","v":"geen boete"}]

{"sheet":"opgelegde NER-boetes","index":1,"n_rows":25,"n_cols":20,"rows_kept":25,"cut":false,"hidden":false,"merged":[[16,1,16,10],[8,1,8,10],[1,1,1,10],[24,8,24,9],[22,1,22,12],[19,1,19,10],[18,1,18,10],[14,1,14,10],[10,1,10,10],[12,1,12,10]]}
[]
[null,"Gegevens over de opgelegde NER-boetes "]
[null,null,null,null,null,null,null,null,null,null,null,null,null,null,null,"ja",null,null,"2010-08-06","2009-11-20"]
[null,"Vul de groene vakjes in via de keuzelijst. ",null,null,null,null,null,null,null,null,null,null,null,null,null,"neen",null,null,"2011-01-21","2009-12-21"]
[null,null,null,null,null,null,null,null,null,null,null,null,null,null,null,"vóór 01.01.2011",null,null,true,"2010-05-17"]
[null,null,null,null,null,null,null,null,null,null,null,null,null,null,null,"in de loop van 2011",null,null,true,"2010-11-08"]
[null,null,null,null,null,null,null,null,null,null,null,null,null,null,null,"na 01.01.2012",null,null,true]
[]
[null,"Hebt u in de periode 2016 – 2020 al 1 of meerder NER-boete(s) opgelegd gekregen?",null,null,null,null,null,null,null,null,null,null,null,null,{"$f":"IF(M9=\"neen\",\"Ga terug naar het menu\",\" \")","v":" "}]
[]
[null,{"$f":"IF(M9=\"ja\",\"Werden er één of meerdere NER-boetes opgelegd in 2016, 2017, 2018 of 2019? (recidivisme voor productiejaar 2020)\",\" \")","v":" "}]
[]
[null,{"$f":"IF(M9=\"ja\",\"Werden er één of meerdere NER-boetes opgelegd in 2017, 2018, 2019 of 2020? (recidivisme voor productiejaar 2021)\",\" \")","v":" "}]
[]
[null,{"$f":"IF(M9=\"ja\",\"Hebt u een NER-boete gekregen voor productiejaar 2019?\",\" \")","v":" "},null,null,null,null,null,null,null,null,null,null,null,null,{"$f":"IF(AND(M9=\"ja\",OR(M11=\"ja\", M11=\"neen\"),OR(M13=\"ja\",M13=\"neen\"),M15=\"neen\"),\"Ga terug naar het menu\",\" \")","v":" "}]
[null,null,null,null,null,null,null,null,null,null,null,null,null,null,","]
[null,{"$f":"IF(M15=\"ja\",\"Hebt u compensatie aangevraagd voor de NER-boete voor productiejaar 2019?\",\" \")","v":" "},null,null,null,null,null,null,null,null,null,null,null,null,{"$f":"IF(AND(M9=\"ja\",OR(M11=\"ja\",M11=\"neen\"),OR(M13=\"ja\",M13=\"neen\"),M15=\"ja\",OR(M17=\"ja\",M17=\"neen\")),\"Ga terug naar het menu\",\" \")","v":" "}]
[]
[]
[]
[null,"ja"]
[null,"neen"]
[null,{"$f":"IF(OR(M17=\"JA\",M17=\"neen\"),\"U kunt geen compensatie meer vragen voor productiejaar 2020\",\" \")","v":" "}]
[]
[null,{"$f":"IF(OR(AND(M9=\"neen\",OR(M11=\"ja\",M13=\"ja\",M15=\"ja\",M17=\"ja\")),AND(M15=\"neen\",OR(M17=\"ja\"))),\"U hebt een onmogelijke combinatie ingevuld.\",\" \")","v":" "}]

{"sheet":"NER 2020","index":2,"n_rows":25,"n_cols":8,"rows_kept":25,"cut":false,"hidden":false,"merged":[[7,1,7,4],[1,1,1,8],[7,6,9,6],[7,7,9,7]]}
[]
[null,"Overzicht van de toegekende nutriëntenemissierechten 2020"]
[]
[null,"Vul in de onderstaande tabel in de groene vakjes het aantal NER in voor 2020 waarmee u de aangeduide diersoort(en) mag houden. "]
[null,"U vindt de onderverdeling terug op uw meest recente berekeningsblad dat betrekking heeft op 2020. "]
[null,"U kan de toegekende NER voor 2020 ook raadplegen via het Mestbankloket:"]
[null,"Mestbankloket"]
[null,"Te houden diersoorten",null,null,null,null," Aantal NER","Extra info"]
[]
[null,"Runderen","Varkens","Pluimvee","Andere"]
[]
[null,"x","x","x","x",null,null,"NER-DR,V,P of A vrij invulbaar"]
[]
[]
[]
[null,"x",null,null,"x",null,null,"NER-DR-vast, NER-DR-plicht (NER-DR overgenomen)"]
[null,null,"x",null,"x",null,null,"NER-DV-vast, NER-DV-plicht (NER-DV overgenomen)"]
[null,null,null,"x","x",null,null,"NER-DP-vast, NER-DP-plicht (NER-DP overgenomen)"]
[null,null,null,"x",null,null,null,"NER-MVWP, T-NER-DP, NER-DP-vast"]
[null,null,"x",null,null,null,null,"NER-MVWV, T-NER-DV, NER-DV-vast"]
[null,null,null,null,"x",null,null,"NER-DA-vast (overgenomen), NER-MVWA, T-NER-DA,\n"]
[null,"x",null,null,null,null,null,"NER-MVWR, T-NER-DR, NER-DR-vast"]
[]
[null,"Een kruisje betekent dat die diersoort mag gehouden worden met de ernaast vermelde NER."]
[null,"In de kolom \"Extra info\" vindt u voor de ernaast vermelde NER, de reden waarom u enkel die specifieke diersoort(en) mag houden."]

{"sheet":"dieren 2020","index":3,"n_rows":66,"n_cols":6,"rows_kept":66,"cut":false,"hidden":false,"merged":[[65,1,65,4],[0,1,0,5],[1,1,1,5],[2,1,2,5],[3,1,3,5]]}
[null,"Overzicht van de gehouden dieren in 2020"]
[null,"Vul in de groene cellen van de tabel het aantal dieren in dat u in 2020 op uw bedrijf gehouden hebt: "]
[null,"Indien de totale mestproductie op uw bedrijf in 2020 lager is dan 300 kg P2O5, dan bent u voor 2020 vrijgesteld van de regels over nutriëntenemissierechten en vult u onderstaande tabel niet in. "]
[]
[]
[null,"Diersoort ","Waarde",null,"Aantal gehouden dieren","Gehouden dieren,\nuitgedrukt in NER's"]
[]
[null,"RUNDVEE:",null,null,null,{"$f":"SUM(F10:F17)","v":0}]
[]
[null,"Vervangingsvee jonger dan 1 jaar",43,null,null,{"$f":"E10*C10","v":0}]
[null,"Vervangingsvee van 1 tot 2 jaar",73,null,null,{"$f":"E11*C11","v":0}]
[null,"Melkkoeien ongeacht de melkproductie",127,null,null,0]
[null,"Mestkalveren",14.1,null,null,0]
[null,"Runderen jonger dan 1 jaar ",31.7,null,null,0]
[null,"Runderen van 1 tot 2 jaar",83,null,null,0]
[null,"Zoogkoeien",127,null,null,0]
[null,"Andere runderen",106.5,null,null,0]
[]
[null,"VARKENS:",null,null,null,{"$f":"SUM(F21:F25)","v":0}]
[]
[null,"Biggen van 7 tot 20 kg ",4.4800000000000004,null,null,{"$f":"E21*C21","v":0}]
[null,"Zeugen incl. biggen van minder dan 7 kg ",38.5,null,null,{"$f":"E22*C22","v":0}]
[null,"Beren",38.5,null,null,{"$f":"E23*C23","v":0}]
[null,"Andere varkens van 20 tot 110 kg (2-fasig of 3-fasig)",18.329999999999998,null,null,{"$f":"E24*C24","v":0}]
[null,"Andere varkens van meer dan 110 kg",38.5,null,null,{"$f":"E25*C25","v":0}]
[]
[null,"PLUIMVEE:",null,null,null,{"$f":"SUM(F29:F39)","v":0}]
[]
[null,"Legkippen incl. (groot)ouderdieren",1.18,null,null,{"$f":"E29*C29","v":0}]
[null,"Opfokpoeljen van legkippen",0.56999999999999995,null,null,{"$f":"E30*C30","v":0}]
[null,"Slachtkuikens ",0.91,null,null,0]
[null,"Slachtkuiken ouderdieren ",1.91,null,null,0]
[null,"Opfokpoeljen van slachtkuiken ouderdieren",0.74,null,null,0]
[null,"Struisvogels fokdieren ",27.8,null,null,0]
[null,"Struisvogels slachtdieren ",13.1,null,null,0]
[null,"Struisvogels van 0 tot 3 maanden",5.2,null,null,0]
[null,"Kalkoenen slachtdieren",2.99,null,null,0]
[null,"Kalkoenen ouderdieren",3.47,null,null,0]
[null,"Ander pluimvee",0.43,null,null,0]
[]
[null,"ANDERE",null,null,null,{"$f":"SUM(F45:F47,F51:F52,F56:F58,F62:F64)","v":0}]
[]
[null,"Konijnen: "]
[]
[null,"Gesloten bedrijven per vrouwelijk konijn ",12.18,null,null,{"$f":"E45*C45","v":0}]
[null,"Vetmesterij per dier",1.1100000000000001,null,null,{"$f":"E46*C46","v":0}]
[null,"Kwekerij per volwassen dier",5.03,null,null,0]
[]
[null,"Geiten en schapen:"]
[]
[null,"Geiten en schapen jonger dan 1 jaar ",6.08,null,null,0]
[null,"Geiten en schapen ouder dan 1 jaar ",14.64,null,null,0]
[]
[null,"Nertsen:"]
[]
[null,"Gesloten bedrijven per moederdier",4.82,null,null,0]
[null,"Vetmesterij per dier ",1.56,null,null,0]
[null,"Kwekerij per volwassen dier",1.78,null,null,0]
[]
[null,"Paarden:"]
[]
[null,"Paarden van meer dan 600 kg",95,null,null,0]
[null,"Paarden en pony’s van 200 tot 600 kg",71,null,null,0]
[null,"Paarden en pony’s van minder dan 200 kg",47,null,null,0]
[]
[null,"TOTAAL AANTAL GEHOUDEN DIEREN, uitgedrukt in NER's:",null,null,null,{"$f":"SUM(F8,F19,F27,F41)","v":0}]

{"sheet":"overschrijding 2020","index":4,"n_rows":48,"n_cols":7,"rows_kept":48,"cut":false,"hidden":false,"merged":[[40,4,43,4],[40,5,43,5],[40,6,43,6],[1,1,1,6],[10,1,10,6],[20,1,20,6],[36,1,36,6],[29,1,29,6],[37,1,37,6]]}
[]
[null,"Berekening van de overschreden NER 2020"]
[]
[null,"De boete voor overschrijding van de toegekende NER in 2020 bedraagt:"]
[]
[null,"BOETE:",null,{"$f":"(IF('opgelegde NER-boetes'!M11=\"ja\",G45*2,G45*1))","v":0},"euro"]
[]
[]
[null,"Hoe wordt de boete berekend?"]
[]
[null,"stap 1 - toewijzen van de gehouden dieren aan NER's waarmee slechts 1 diersoort kan gehouden worden"]
[]
[null,"Diersoort",null,"Gehouden dieren, uitgedrukt in NER’s ","NER’s waarmee 1 diersoort kan gehouden worden ","overschot NER voor 1 diersoort","Resultaat:                          toe te wijzen dieren       na stap 1"]
[]
[null,"RUNDVEE",null,{"$f":"'dieren 2020'!$F$8","v":0},{"$f":"'NER 2020'!$G$22","v":0},{"$f":"MAXA(E15-D15,0)","v":0},{"$f":"MAXA(D15-E15,0)","v":0}]
[null,"VARKENS",null,{"$f":"'dieren 2020'!$F$19","v":0},{"$f":"'NER 2020'!$G$20","v":0},{"$f":"MAXA(E16-D16,0)","v":0},{"$f":"MAXA(D16-E16,0)","v":0}]
[null,"PLUIMVEE",null,{"$f":"'dieren 2020'!$F$27","v":0},{"$f":"'NER 2020'!$G$19","v":0},{"$f":"MAXA(E17-D17,0)","v":0},{"$f":"MAXA(D17-E17,0)","v":0}]
[null,"ANDERE",null,{"$f":"'dieren 2020'!$F$41","v":0},{"$f":"'NER 2020'!$G$21","v":0},{"$f":"MAXA(E18-D18,0)","v":0},{"$f":"MAXA(D18-E18,0)","v":0}]
[]
[]
[null,"stap 2 - toewijzen van dieren aan NER's waarmee 2 diersoorten kunnen gehouden worden (enkel toewijzing van dieren die niet behoren tot de diersoort andere)"]
[]
[null,"Diersoort",null,"Toe te wijzen dieren in NER voor stap 2","NER’s waarmee 2 diersoorten kunnen gehouden worden ","overschot aan NER's waarmee 2 diersoorten kunnen gehouden worden","Resultaat:                                   toe te wijzen dieren       na stap 2"]
[]
[null,"RUNDVEE",null,{"$f":"G15","v":0},{"$f":"'NER 2020'!$G$16","v":0},{"$f":"MAXA(E25-D25,0)","v":0},{"$f":"MAXA(D25-E25,0)","v":0}]
[null,"VARKENS",null,{"$f":"G16","v":0},{"$f":"'NER 2020'!$G$17","v":0},{"$f":"MAXA(E26-D26,0)","v":0},{"$f":"MAXA(D26-E26,0)","v":0}]
[null,"PLUIMVEE",null,{"$f":"G17","v":0},{"$f":"'NER 2020'!$G$18","v":0},{"$f":"MAXA(E27-D27,0)","v":0},{"$f":"MAXA(D27-E27,0)","v":0}]
[]
[]
[null,"stap 3 - toewijzen van de diersoort 'andere' aan het overschot van NER's uit stap 2"]
[]
[null,"Diersoort",null,"Toe te wijzen dieren van de diersoort 'andere'                 voor stap 3","overschot aan NER's waarmee 2 diersoorten kunnen gehouden worden","overschot aan NER's waarmee 2 diersoorten kunnen gehouden worden na stap 3","Resultaat:                         toe te wijzen dieren van de diersoort 'andere' na stap 3"]
[]
[null,"ANDERE",null,{"$f":"G18","v":0},{"$f":"SUM(F25:F27)","v":0},{"$f":"MAXA(E34-D34,0)","v":0},{"$f":"MAXA(D34-E34,0)","v":0}]
[]
[]
[null,"stap 4 - toewijzen van de dieren aan NER's waarmee alle diersoorten kunnen gehouden worden"]
[null,"Opmerking: de NER's waarmee 3 diersoorten kunnen gehouden worden, worden beschouwd als NER's waarmee alle diersoorten kunnen gehouden worden."]
[null,"Diersoort",null,"Toe te wijzen dieren voor stap 4","NER’s waarmee ALLE diersoorten kunnen gehouden worden ","overschot vrije NER","Resultaat:                  De overschreden NER's"]
[]
[null,"RUNDVEE",null,{"$f":"G25","v":0}]
[null,"VARKENS",null,{"$f":"G26","v":0}]
[null,"PLUIMVEE",null,{"$f":"G27","v":0}]
[null,"ANDERE",null,{"$f":"G34","v":0}]
[null,"TOTAAL",null,{"$f":"SUM(D41:D44)","v":0},{"$f":"'NER 2020'!G12+'NER 2020'!G13+'NER 2020'!G14+'NER 2020'!G15","v":0},{"$f":"MAXA(E45-D45,0)","v":0},{"$f":"MAXA(D45-E45,0)","v":0}]
[]
[null,"De boete wordt berekend door het aantal overschreden NER te vermenigvuldigen met 1 euro."]
[null,"Bij een herhaling binnen de vijf jaar (recidivisme) wordt er vermenigvuldigd met 2 euro."]

{"sheet":"NER 2021","index":5,"n_rows":25,"n_cols":8,"rows_kept":25,"cut":false,"hidden":false,"merged":[[7,1,7,4],[1,1,1,8],[7,6,9,6],[7,7,9,7]]}
[]
[null,"Overzicht van de toegekende nutriëntenemissierechten 2021"]
[]
[null,"Vul in de onderstaande tabel in de groene vakjes het aantal NER in voor 2021 waarmee u de aangeduide diersoort(en) mag houden. "]
[null,"U vindt de onderverdeling terug op uw meest recente berekeningsblad dat betrekking heeft op 2021. "]
[null,"U kan de toegekende NER voor 2021 ook raadplegen via het Mestbankloket:"]
[null,"Mestbankloket"]
[null,"Te houden diersoorten",null,null,null,null," Aantal NER","extra info"]
[]
[null,"Runderen","Varkens","Pluimvee","Andere"]
[]
[null,"x","x","x","x",null,null,"NER-DR,V,P of A vrij invulbaar"]
[]
[]
[]
[null,"x",null,null,"x",null,null,"NER-DR-vast, NER-DR-plicht (NER-DR overgenomen)"]
[null,null,"x",null,"x",null,null,"NER-DV-vast, NER-DV-plicht (NER-DV overgenomen)"]
[null,null,null,"x","x",null,null,"NER-DP-vast, NER-DP-plicht (NER-DP overgenomen)"]
[null,null,null,"x",null,null,null,"NER-MVWP, T-NER-DP, NER-DP-vast"]
[null,null,"x",null,null,null,null,"NER-MVWV, T-NER-DV, NER-DV-vast"]
[null,null,null,null,"x",null,null,"NER-DA-vast (overgenomen), NER-MVWA, T-NER-DA,\n"]
[null,"x",null,null,null,null,null,"NER-MVWR, T-NER-DR, NER-DR-vast"]
[]
[null,"Een kruisje betekent dat die diersoort mag gehouden worden met de ernaast vermelde NER."]
[null,"In de kolom \"Extra info\" vindt u voor de ernaast vermelde NER, de reden waarom u enkel die specifieke diersoort(en) mag houden."]

{"sheet":"dieren 2021","index":6,"n_rows":66,"n_cols":6,"rows_kept":66,"cut":false,"hidden":false,"merged":[[65,1,65,4],[0,1,0,5],[1,1,1,5],[18,8,18,12],[2,1,2,5],[3,1,3,5]]}
[null,"Prognose van de gehouden dieren in 2021"]
[null,"Vul in de groene cellen van de tabel de prognose van het aantal gehouden dieren in 2021 op uw bedrijf, in."]
[null,"Indien de totale mestproductie op uw bedrijf in 2021 lager is dan 300 kg P2O5, dan bent u voor 2021 vrijgesteld van de regels over nutriëntenemissierechten en vult u onderstaande tabel niet in. "]
[]
[]
[null,"Diersoort ","Waarde",null,"Aantal gehouden dieren","Gehouden dieren\nuitgedrukt in NER's"]
[]
[null,"RUNDVEE",null,null,null,{"$f":"SUM(F10:F17)","v":0}]
[]
[null,"Vervangingsvee jonger dan 1 jaar",43,null,null,{"$f":"E10*C10","v":0}]
[null,"Vervangingsvee van 1 tot 2 jaar",73,null,null,0]
[null,"Melkkoeien ongeacht de melkproductie",127,null,null,0]
[null,"Mestkalveren",14.1,null,null,0]
[null,"Runderen jonger dan 1 jaar ",31.7,null,null,0]
[null,"Runderen van 1 tot 2 jaar",83,null,null,0]
[null,"Zoogkoeien",127,null,null,0]
[null,"Andere runderen",106.5,null,null,0]
[]
[null,"VARKENS",null,null,null,{"$f":"SUM(F21:F25)","v":0}]
[]
[null,"Biggen van 7 tot 20 kg ",4.4800000000000004,null,null,{"$f":"E21*C21","v":0}]
[null,"Zeugen incl. biggen van minder dan 7 kg ",38.5,null,null,{"$f":"E22*C22","v":0}]
[null,"Beren",38.5,null,null,{"$f":"E23*C23","v":0}]
[null,"Andere varkens van 20 tot 110 kg (2-fasig of 3-fasig)",18.329999999999998,null,null,{"$f":"E24*C24","v":0}]
[null,"Andere varkens van meer dan 110 kg",38.5,null,null,{"$f":"E25*C25","v":0}]
[]
[null,"PLUIMVEE",null,null,null,{"$f":"SUM(F29:F39)","v":0}]
[]
[null,"Legkippen incl. (groot)ouderdieren",1.18,null,null,{"$f":"E29*C29","v":0}]
[null,"Opfokpoeljen van legkippen",0.56999999999999995,null,null,{"$f":"E30*C30","v":0}]
[null,"Slachtkuikens ",0.91,null,null,0]
[null,"Slachtkuiken ouderdieren ",1.91,null,null,0]
[null,"Opfokpoeljen van slachtkuiken ouderdieren",0.74,null,null,0]
[null,"Struisvogels fokdieren ",27.8,null,null,0]
[null,"Struisvogels slachtdieren ",13.1,null,null,0]
[null,"Struisvogels van 0 tot 3 maanden",5.2,null,null,0]
[null,"Kalkoenen slachtdieren",2.99,null,null,0]
[null,"Kalkoenen ouderdieren",3.47,null,null,0]
[null,"Ander pluimvee",0.43,null,null,0]
[]
[null,"ANDERE",null,null,null,{"$f":"SUM(F45:F47,F51:F52,F56:F58,F62:F64)","v":0}]
[]
[null,"Konijnen"]
[]
[null,"Gesloten bedrijven per vrouwelijk konijn ",12.18,null,null,{"$f":"E45*C45","v":0}]
[null,"Vetmesterij per dier",1.1100000000000001,null,null,{"$f":"E46*C46","v":0}]
[null,"Kwekerij per volwassen dier",5.03,null,null,0]
[]
[null,"Geiten en schapen"]
[]
[null,"Geiten en schapen jonger dan 1 jaar ",6.08,null,null,0]
[null,"Geiten en schapen ouder dan 1 jaar ",14.64,null,null,0]
[]
[null,"Nertsen"]
[]
[null,"Gesloten bedrijven per moederdier",4.82,null,null,0]
[null,"Vetmesterij per dier ",1.56,null,null,0]
[null,"Kwekerij per volwassen dier",1.78,null,null,0]
[]
[null,"Paarden"]
[]
[null,"Paarden van meer dan 600 kg",95,null,null,0]
[null,"Paarden en pony’s van 200 tot 600 kg",71,null,null,0]
[null,"Paarden en pony’s van minder dan 200 kg",47,null,null,0]
[]
[null,"TOTAAL AANTAL GEHOUDEN DIEREN, uitgedrukt in NER's:",null,null,null,{"$f":"SUM(F8,F19,F27,F41)","v":0}]

{"sheet":"overschrijding 2021","index":7,"n_rows":47,"n_cols":7,"rows_kept":47,"cut":false,"hidden":false,"merged":[[1,1,1,6],[10,1,10,6],[20,1,20,6],[36,1,36,6],[29,1,29,6],[46,1,46,6],[40,4,43,4],[40,5,43,5],[40,6,43,6],[37,1,37,6]]}
[]
[null,"Berekening van de overschreden NER 2021"]
[]
[null,"De boete voor overschrijding van de toegekende NER in 2021 bedraagt:"]
[]
[null,"BOETE:",null,{"$f":"(IF('opgelegde NER-boetes'!M13=\"ja\",G45*2,G45*1))","v":0},"euro"]
[]
[]
[null,"Hoe wordt de boete berekend?"]
[]
[null,"stap 1 - toewijzen van de gehouden dieren aan NER's waarmee slechts 1 diersoort kan gehouden worden"]
[]
[null,"Diersoort",null,"Gehouden dieren, uitgedrukt in NER’s ","NER’s waarmee 1 diersoort kan gehouden worden ","overschot NER voor 1 diersoort","Resultaat:                   toe te wijzen dieren        na stap 1"]
[]
[null,"RUNDVEE",null,{"$f":"'dieren 2021'!F8","v":0},{"$f":"'NER 2021'!G22","v":0},{"$f":"MAXA(E15-D15,0)","v":0},{"$f":"MAXA(D15-E15,0)","v":0}]
[null,"VARKENS",null,{"$f":"'dieren 2021'!F19","v":0},{"$f":"'NER 2021'!G20","v":0},{"$f":"MAXA(E16-D16,0)","v":0},{"$f":"MAXA(D16-E16,0)","v":0}]
[null,"PLUIMVEE",null,{"$f":"'dieren 2021'!F27","v":0},{"$f":"'NER 2021'!G19","v":0},{"$f":"MAXA(E17-D17,0)","v":0},{"$f":"MAXA(D17-E17,0)","v":0}]
[null,"ANDERE",null,{"$f":"'dieren 2021'!F41","v":0},{"$f":"'NER 2021'!G21","v":0},{"$f":"MAXA(E18-D18,0)","v":0},{"$f":"MAXA(D18-E18,0)","v":0}]
[]
[]
[null,"stap 2 - toewijzen van dieren aan NER's waarmee 2 diersoorten kunnen gehouden worden (enkel toewijzing van dieren die niet behoren tot de diersoort andere)"]
[]
[null,"Diersoort",null,"Toe te wijzen dieren         voor stap 2","NER’s waarmee 2 diersoorten kunnen gehouden worden ",{"$f":"'overschrijding 2020'!F23","v":"overschot aan NER's waarmee 2 diersoorten kunnen gehouden worden"},"Resultaat:                    toe te wijzen dieren      na stap 2"]
[]
[null,"RUNDVEE",null,{"$f":"G15","v":0},{"$f":"'NER 2021'!G16","v":0},{"$f":"MAXA(E25-D25,0)","v":0},{"$f":"MAXA(D25-E25,0)","v":0}]
[null,"VARKENS",null,{"$f":"G16","v":0},{"$f":"'NER 2021'!G17","v":0},{"$f":"MAXA(E26-D26,0)","v":0},{"$f":"MAXA(D26-E26,0)","v":0}]
[null,"PLUIMVEE",null,{"$f":"G17","v":0},{"$f":"'NER 2021'!G18","v":0},{"$f":"MAXA(E27-D27,0)","v":0},{"$f":"MAXA(D27-E27,0)","v":0}]
[]
[]
[null,"stap 3 - toewijzen van de diersoort 'andere' aan het overschot van NER's uit stap 2"]
[]
[null,"Diersoort",null,{"$f":"'overschrijding 2020'!D32","v":"Toe te wijzen dieren van de diersoort 'andere'                 voor stap 3"},{"$f":"'overschrijding 2020'!E32","v":"overschot aan NER's waarmee 2 diersoorten kunnen gehouden worden"},{"$f":"'overschrijding 2020'!F32","v":"overschot aan NER's waarmee 2 diersoorten kunnen gehouden worden na stap 3"},{"$f":"'overschrijding 2020'!G32","v":"Resultaat:                         toe te wijzen dieren van de diersoort 'andere' na stap 3"}]
[]
[null,"ANDERE",null,{"$f":"G18","v":0},{"$f":"SUM(F25:F27)","v":0},{"$f":"MAXA(E34-D34,0)","v":0},{"$f":"MAXA(D34-E34,0)","v":0}]
[]
[]
[null,"stap 4 - toewijzen van de dieren aan NER's waarmee alle diersoorten kunnen gehouden worden"]
[null,"Opmerking: De NER's waarmee 3 diersoorten kunnen gehouden worden, worden beschouwd als NER's waarmee alle diersoorten kunnen gehouden worden."]
[null,"Diersoort",null,"Toe te wijzen dieren      voor stap 4","NER’s waarmee ALLE diersoorten kunnen gehouden worden ","overschot vrije NER","Resultaat: \nDe overschreden NER's"]
[]
[null,"RUNDVEE",null,{"$f":"G25","v":0}]
[null,"VARKENS",null,{"$f":"G26","v":0}]
[null,"PLUIMVEE",null,{"$f":"G27","v":0}]
[null,"ANDERE",null,{"$f":"G34","v":0}]
[null,"TOTAAL",null,{"$f":"SUM(D41:D44)","v":0},{"$f":"'NER 2021'!G12+'NER 2021'!G13+'NER 2021'!G14+'NER 2021'!G15","v":0},{"$f":"MAXA(E45-D45,0)","v":0},{"$f":"MAXA(D45-E45,0)","v":0}]
[]
[null,"De boete wordt berekend door het aantal overschreden NER te vermenigvuldigen met 1 euro. Bij een herhaling binnen de vijf jaar (recidivisme) wordt er vermenigvuldigd met 2 euro."]

{"sheet":"compensatie 20+21","index":8,"n_rows":47,"n_cols":7,"rows_kept":47,"cut":false,"hidden":false,"merged":[[1,1,1,6],[43,1,43,5],[40,1,40,5],[23,1,23,5],[25,1,25,5],[27,1,27,6],[35,1,35,6],[31,1,31,6],[32,1,32,6],[16,1,16,6],[37,1,37,6],[21,1,21,5],[33,1,33,6],[10,1,10,6],[7,1,7,7],[46,1,46,6],[8,1,8,7]]}
[]
[null,"Berekening van de compensatie"]
[null,"In dit tabblad wordt bepaald of compensatie voor u voordelig is of niet."]
[]
[]
[null,"1. Hebt u reeds een NER-boete gekregen?"]
[]
[null,{"$f":"IF(Startpagina!O12=\"onmogelijke combinatie ingevuld\",\"U hebt een onmogelijke combinatie ingevuld bij de gegevens over de opgelegde NER-boetes. Hierdoor kan u een verkeerd resultaat krijgen.\",IF(OR(Startpagina!O12=\"leeg\",Startpagina!O12=\"opgelegde NER-boetes niet volledig ingevuld\"),\"U hebt de gegevens over de opgelegde NER-boetes niet of niet volledig ingevuld. Hierdoor kan u een verkeerd resultaat krijgen.\",IF('opgelegde NER-boetes'!M9=\"neen\",\"U hebt geen NER-boetes gekregen in 2016-2019.\",IF(AND('opgelegde NER-boetes'!M11=\"ja\",'opgelegde NER-boetes'!M13=\"ja\"),\"U hebt in de periode 2016-2019 reeds één of meerdere NER-boetes gekregen. Hierdoor bedragen de boetes voor productiejaren 2020 en 2021 2 euro per overschreden NER (recidivisme).\",IF('opgelegde NER-boetes'!M11=\"ja\",\"U hebt in 2016, 2017, 2018 en 2019 reeds één of meerdere NER-boetes gekregen. Hierdoor bedraagt de boete voor productiejaar 2020 2 euro per overschreden NER (recidivisme).\",IF('opgelegde NER-boetes'!M13=\"ja\",\"U hebt in 2016-2019 reeds één of meerdere NER-boetes gekregen. Hierdoor bedraagt de boete voor productiejaar 2021 2 euro per overschreden NER (recidivisme).\",\"U hebt reeds NER-boetes gekregen in 2016-2019 maar deze boetes werden pas na 31.12.2020 opgelegd (geen recidivisme voor productiejaren 2020 en 2021).\"))))))","v":"U hebt reeds NER-boetes gekregen in 2016-2019 maar deze boetes werden pas na 31.12.2020 opgelegd (geen recidivisme voor productiejaren 2020 en 2021)."}]
[null,{"$f":"IF(OR(B8=\"U hebt een onmogelijke combinatie ingevuld bij de gegevens over de opgelegde NER-boetes. Hierdoor kan u een verkeerd resultaat krijgen.\",B8=\"U hebt geen NER-boetes gekregen voor 2016- 2019\",B8=\"U hebt de gegevens over de opgelegde NER-boetes niet of niet volledig ingevuld. Hierdoor kan u een verkeerd resultaat krijgen.\"),\" \",IF(AND('opgelegde NER-boetes'!M15=\"ja\",'opgelegde NER-boetes'!M17=\"neen\"),\"U hebt een boete gekregen voor 2019 en geen compensatie aangevraagd voor 2019.\",IF(AND('opgelegde NER-boetes'!M15=\"ja\",'opgelegde NER-boetes'!M17=\"ja\"),\"U hebt een boete gekregen voor 2019 en compensatie aangevraagd voor productiejaar 2020.\",\" \")))","v":" "}]
[null,{"$f":"IF(B9=\"U hebt een boete gekregen voor 2020 en compensatie aangevraagd voor productiejaar 2020.\",\" \",\"Zie punt 2.\")","v":"Zie punt 2."}]
[null,{"$f":"IF(B9=\"U hebt een boete gekregen voor 2019 en compensatie aangevraagd voor productiejaar 2019.\",\"U kunt geen compensatie meer vragen voor productiejaar 2020\",\" \")","v":" "}]
[null,"2. Hebt u een boete voor 2020?"]
[]
[null,{"$f":"IF(Startpagina!O18=\"Geen boete\",\"U hebt een boete voor 2021.\",\"Ja. Zie punt 3.\")","v":"U hebt een boete voor 2021."}]
[]
[]
[null,{"$f":"IF(Startpagina!O18=\"Geen boete\",\"De compensatieregeling is niet van toepassing\",IF($G$44>=$G$41,\"U vraagt beter geen compensatie.\",\"Het is voordelig om compensatie te vragen.\"))","v":"De compensatieregeling is niet van toepassing"}]
[null,"3. Hebt u een overschot aan NER in 2021?"]
[]
[null,{"$f":"IF(Startpagina!O18=\"Geen boete\",\"Compensatie is niet van toepassing\",IF(('overschrijding 2021'!F15+'overschrijding 2021'!F16+'overschrijding 2021'!F17+'overschrijding 2021'!F18+'overschrijding 2021'!F34+'overschrijding 2021'!F45)>0,\"Zie resultaat startpagina.\",\"Neen, u hebt geen overschot aan NER in 2021.\"))","v":"Compensatie is niet van toepassing"}]
[null,{"$f":"IF(Startpagina!O18=\"Geen boete\",\"\",IF(B20=\"Neen, u hebt geen overschot aan NER in 2021.\",\"Als u compensatie aanvraagt, bedraagt de boete voor 2020 2 euro per overschreden NER.\",\"\"))","v":""}]
[null,"Als u een boete hebt voor 2020, dan blijft deze behouden."]
[]
[null,"Nieuwe boete 2020 en boete 2021 samen, met compensatie: ",null,null,null,null,{"$f":"compensatie!AV22","v":0}]
[]
[null,"Boete 2019 en boete 2020 samen, zonder compensatie: ",null,null,null,null,{"$f":"'overschrijding 2020'!D6+'overschrijding 2021'!D6","v":0}]
[]
[null,{"$f":"IF(Startpagina!O18=\"Geen boete\",\"Compensatieregeling is niet van toepassing\",IF($G$44>=$G$41,\"U vraagt beter geen compensatie.\",\"Het is voordelig om compensatie te vragen.\"))","v":"Compensatieregeling is niet van toepassing"}]
[]
[null,{"$f":"IF(B20=\"Neen, u hebt geen overschot aan NER in 2019.\",\"\",\"4. Is het voordelig om compensatie te vragen?\")","v":"4. Is het voordelig om compensatie te vragen?"}]
[]
[null,"Om dit te bepalen wordt de overschrijding van 2018 opnieuw berekend rekening houdend met de overschotten van NER in 2019. De overschotten aan NER in 2019 worden toegewezen aan 2018op de meest voordelige wijze."]
[null,"Als u geen overschrijding 2018 meer hebt, dan valt de boete 2018 weg.  "]
[null,"Als u nog steeds een overschrijding in 2018 hebt, dan bedraagt de nieuwe boete van 2018 2 euro/overschreden NER."]
[]
[null,"Als u een boete hebt voor 2019, dan blijft deze behouden."]
[]
[null,{"$f":"IF(compensatie!AZ17=0,\"Resultaat na compensatie: U hebt geen overschrijding meer in 2018. De boete voor 2018 valt weg.\",\"Resultaat na compensatie: U hebt nog steeds een overschrijding in 2018. De nieuwe boete van 2018 bedraagt 2 euro per overschreden NER. \")","v":"Resultaat na compensatie: U hebt geen overschrijding meer in 2018. De boete voor 2018 valt weg."}]
[null,null,null,null,null,null,{"$f":"Boete('dieren 2020'!$F$8,'dieren 2020'!$F$19,'dieren 2020'!$F$27,'dieren 2020'!$F$41,'NER 2020'!$G$22,'NER 2020'!$G$20,'NER 2020'!$G$19,'NER 2020'!$G$21,'NER 2020'!$G$16,'NER 2020'!$G$17,'NER 2020'!$G$18,('NER 2020'!$G$15+'NER 2020'!$G$14+'NER 2020'!$G$13+'NER 2020'!$G$12),'dieren 2021'!$F$8,'dieren 2021'!$F$19,'dieren 2021'!$F$27,'dieren 2021'!$F$41,'NER 2021'!$G$22,'NER 2021'!$G$20,'NER 2021'!$G$19,'NER 2021'!$G$21,'NER 2021'!$G$16,'NER 2021'!$G$17,'NER 2021'!$G$18,('NER 2021'!$G$15+'NER 2021'!$G$14+'NER 2021'!$G$13+'NER 2021'!$G$12),1,FALSE)","v":0}]
[null,null,null,null,null,null,{"$f":"Boete('dieren 2020'!$F$8,'dieren 2020'!$F$19,'dieren 2020'!$F$27,'dieren 2020'!$F$41,'NER 2020'!$G$22,'NER 2020'!$G$20,'NER 2020'!$G$19,'NER 2020'!$G$21,'NER 2020'!$G$16,'NER 2020'!$G$17,'NER 2020'!$G$18,('NER 2020'!$G$15+'NER 2020'!$G$14+'NER 2020'!$G$13+'NER 2020'!$G$12),'dieren 2021'!$F$8,'dieren 2021'!$F$19,'dieren 2021'!$F$27,'dieren 2021'!$F$41,'NER 2021'!$G$22,'NER 2021'!$G$20,'NER 2021'!$G$19,'NER 2021'!$G$21,'NER 2021'!$G$16,'NER 2021'!$G$17,'NER 2021'!$G$18,('NER 2021'!$G$15+'NER 2021'!$G$14+'NER 2021'!$G$13+'NER 2021'!$G$12),2,FALSE)","v":0}]
[null,"Boete 2018 en boete 2019 samen, zonder compensatie: ",null,null,null,null,{"$f":"'overschrijding 2020'!D6+'overschrijding 2021'!D6","v":0}]
[null,null,null,null,null,null,{"$f":"Boete('dieren 2020'!$F$8,'dieren 2020'!$F$19,'dieren 2020'!$F$27,'dieren 2020'!$F$41,'NER 2020'!$G$22,'NER 2020'!$G$20,'NER 2020'!$G$19,'NER 2020'!$G$21,'NER 2020'!$G$16,'NER 2020'!$G$17,'NER 2020'!$G$18,('NER 2020'!$G$15+'NER 2020'!$G$14+'NER 2020'!$G$13+'NER 2020'!$G$12),'dieren 2021'!$F$8,'dieren 2021'!$F$19,'dieren 2021'!$F$27,'dieren 2021'!$F$41,'NER 2021'!$G$22,'NER 2021'!$G$20,'NER 2021'!$G$19,'NER 2021'!$G$21,'NER 2021'!$G$16,'NER 2021'!$G$17,'NER 2021'!$G$18,('NER 2021'!$G$15+'NER 2021'!$G$14+'NER 2021'!$G$13+'NER 2021'!$G$12),1,TRUE)","v":0}]
[null,null,null,null,null,null,{"$f":"Boete('dieren 2020'!$F$8,'dieren 2020'!$F$19,'dieren 2020'!$F$27,'dieren 2020'!$F$41,'NER 2020'!$G$22,'NER 2020'!$G$20,'NER 2020'!$G$19,'NER 2020'!$G$21,'NER 2020'!$G$16,'NER 2020'!$G$17,'NER 2020'!$G$18,('NER 2020'!$G$15+'NER 2020'!$G$14+'NER 2020'!$G$13+'NER 2020'!$G$12),'dieren 2021'!$F$8,'dieren 2021'!$F$19,'dieren 2021'!$F$27,'dieren 2021'!$F$41,'NER 2021'!$G$22,'NER 2021'!$G$20,'NER 2021'!$G$19,'NER 2021'!$G$21,'NER 2021'!$G$16,'NER 2021'!$G$17,'NER 2021'!$G$18,('NER 2021'!$G$15+'NER 2021'!$G$14+'NER 2021'!$G$13+'NER 2021'!$G$12),2,TRUE)","v":0}]
[null,"Nieuwe boete 2018 en boete 2019 samen, met compensatie: ",null,null,null,null,{"$f":"compensatie!AV22","v":0}]
[]
[]
[null,{"$f":"IF(Startpagina!O18=\"Geen boete\",\"Compensatieregeling is niet van toepassing\",IF($G$44>=$G$41,\"U vraagt beter geen compensatie.\", \"Het is voordelig om compensatie te vragen.\"))","v":"Compensatieregeling is niet van toepassing"}]

{"sheet":"compensatie","index":9,"n_rows":53,"n_cols":53,"rows_kept":53,"cut":false,"hidden":true,"merged":[[2,1,2,4],[33,14,34,14],[29,15,30,15],[31,15,32,15],[33,15,34,15],[29,14,30,14],[0,27,0,32],[31,14,32,14],[2,10,2,11],[2,12,2,13],[2,14,2,19]]}
["1) Toegekende NER's",null,null,null,null,null,null,null,"2) Geproduceerde NER's",null,null,null,null,null,"3) Berekening",null,null,null,null,null,"Stap 4: toewijzing van de overschotten van toegekende NER's uit stappen 2 en 3 aan de diersoort ",null,null,null,null,null,null,"Toewijzing voor productiejaar 2010",null,null,null,null,null,null,"Stap 4: toewijzing van de overschotten van toegekende NER's uit stappen 2 en 3 aan de diersoort ",null,null,null,null,null,"Toewijzing van het overschot van de toegekende NER's (2010) aan het voorlopig overschot",null,null,null,null,null,null,"Stap 4: toewijzing van de overschotten van toegekende NER's uit stappen 2 en 3 aan de diersoort "]
[null,null,null,null,null,null,null,null,null,null,null,null,null,null,null,null,null,null,null,null,"'andere'.",null,null,null,null,null,null,"Stap 1: toewijzing van NER's die slechts aan 1 diersoort kunnen toegekend worden",null,null,null,null,null,null,"'andere'.",null,null,null,null,null," van de geproduceerden NER's (2009)",null,null,null,null,null,null,"'andere'."]
[null,"Te houden diersoorten",null,null,null,2009,2010,null,null,null,2009,null,2010,null,"Toewijzing voor productiejaar 2009"]
[null,"runderen","varkens","pluimvee","andere","Aantal","Aantal",null,"Diersoort ","Waarde","Aantal","NER's","Aantal","NER's","Stap 1: toewijzing van NER's die slechts aan 1 diersoort kunnen toegekend worden",null,null,null,null,null,null,null,null,null,null,null,null,"Diersoort ","NER's","Resultaat stap 1",null,null,null,null,"Diersoort ","Resultaat stap 3","Resultaat stap 4",null,null,null,"Stap 1: toewijzing van NER's die slechts aan 1 diersoort kunnen toegekend worden",null,null,null,null,null,null,"Diersoort ","Resultaat stap 3","Resultaat stap 4"]
["# NER-D","x","x","x","x",{"$f":"'NER 2020'!G12+'NER 2020'!G13+'NER 2020'!G14+'NER 2020'!G15","v":0},{"$f":"'NER 2021'!G12+'NER 2021'!G13+'NER 2021'!G14+'NER 2021'!G15","v":0},null,"1° RUNDVEE :",null,null,{"$f":"'dieren 2020'!F8","v":0},null,{"$f":"'dieren 2021'!F8","v":0},"(overschotten van toegekende NER's dienen hier niet bijgehouden te worden daar die sowieso niet ",null,null,null,null,null,"Diersoort ","Resultaat stap 3","Resultaat stap 4",null,null,null,null,"1° RUNDVEE :",{"$f":"N5","v":0},{"$f":"+IF(AC5-G19<0,0,AC5-G19)","v":0},null,null,null,null,"1° RUNDVEE :",{"$f":"AD27","v":0},{"$f":"AJ5","v":0},null,null,null,"(overschotten van toegekende NER's dienen hier niet bijgehouden te worden daar die sowieso niet ",null,null,null,null,null,null,"1° RUNDVEE :",{"$f":"AQ32","v":0},{"$f":"AW5","v":0}]
[null,"x","x","x",null,"/","/",null,"a) Melkvee : ",null,null,null,null,null,"meer ingevuld kunnen worden)",null,null,null,null,null,"1° RUNDVEE :",{"$f":"R38","v":0},{"$f":"V6","v":0},null,null,null,null,"2° VARKENS :",{"$f":"N16","v":0},{"$f":"+IF(AC6-G17<0,0,AC6-G17)","v":0},null,null,null,null,"2° VARKENS :",{"$f":"AD28","v":0},{"$f":"AJ6","v":0},null,null,null,"meer ingevuld kunnen worden)",null,null,null,null,null,null,"2° VARKENS :",{"$f":"AQ33","v":0},{"$f":"AW6","v":0}]
[null,null,"x","x","x",null,null,null,"Melkkoeien ongeacht de melkproductie",127,null,{"$f":"J7*K7","v":0},null,{"$f":"J7*M7","v":0},null,null,null,null,null,null,"2° VARKENS :",{"$f":"R39","v":0},{"$f":"V7","v":0},null,null,null,null,"3° PLUIMVEE :",{"$f":"N22","v":0},{"$f":"+IF(AC7-G16<0,0,AC7-G16)","v":0},null,null,null,null,"3° PLUIMVEE :",{"$f":"AD29","v":0},{"$f":"AJ7","v":0},null,null,null,null,null,null,null,null,null,null,"3° PLUIMVEE :",{"$f":"AQ34","v":0},{"$f":"AW7","v":0}]
[null,"x","x",null,"x",null,null,null,"Vervangingsvee jonger dan 1 jaar",43,null,{"$f":"J8*K8","v":0},null,{"$f":"J8*M8","v":0},"Diersoort ","NER's","Resultaat stap 1",null,null,null,"3° PLUIMVEE :",{"$f":"R40","v":0},{"$f":"V8","v":0},null,null,null,null,"4° ANDERE :",{"$f":"N38","v":0},{"$f":"+IF(AC8-G18<0,0,AC8-G18)","v":0},null,null,null,null,"4° ANDERE :",{"$f":"AD30","v":0},{"$f":"+IF(AJ8-AD32<0,0,AJ8-AD32)","v":0},null,null,null,"Diersoort ","Voorlopig overschot","Resultaat stap 1",null,null,null,null,"4° ANDERE :",{"$f":"AQ35","v":0},{"$f":"+IF(AW8-AQ37<0,0,AW8-AQ37)","v":0}]
[null,"x",null,"x","x",null,null,null,"Vervangingsvee van 1 jaar tot 2 jaar",73,null,{"$f":"J9*K9","v":0},null,{"$f":"J9*M9","v":0},"1° RUNDVEE :",{"$f":"L5","v":0},{"$f":"+IF(P9-F19<0,0,P9-F19)","v":0},null,null,null,"4° ANDERE :",{"$f":"R41","v":0},{"$f":"+IF(V9-Q43<0,0,V9-Q43)","v":0},null,null,null,null,null,null,null,null,null,null,null,null,null,null,null,null,null,"1° RUNDVEE :",{"$f":"V14","v":0},{"$f":"+IF(AP9-AN21<0,0,AP9-AN21)","v":0}]
[null,"x",null,"x",null,"/","/",null,"b) Mestvee : ",null,null,null,null,null,"2° VARKENS :",{"$f":"L16","v":0},{"$f":"+IF(P10-F17<0,0,P10-F17)","v":0},null,null,null,null,null,null,null,null,null,null,"Stap 2: toewijzing van de NER's die aan 2 diersoorten kunnen toegekend worden. ",null,null,null,null,null,null,"Het definitief overschot van de geproduceerde NER's (2010) = nog openstaande geproduceerde",null,null,null,null,null,"2° VARKENS :",{"$f":"V15","v":0},{"$f":"+IF(AP10-AN22<0,0,AP10-AN22)","v":0},null,null,null,null,"Het definitief overschot van de geproduceerde NER's (2009) = nog openstaande voorlopig "]
[null,"x","x",null,null,"/","/",null,"Zoogkoeien ",127,null,{"$f":"J11*K11","v":0},null,{"$f":"J11*M11","v":0},"3° PLUIMVEE :",{"$f":"L22","v":0},{"$f":"+IF(P11-F16<0,0,P11-F16)","v":0},null,null,null,"Het voorlopig overschot van de geproduceerde NER's (2009):",null,null,null,null,null,null,"Hierbij gebeurt de toewijzing enkel aan de diersoort verschillend van de diersoort 'andere'.",null,null,null,null,null,null,"NER's (2010) - NER's die aan alle diersoorten kunnen toegekend worden (2010).",null,null,null,null,null,"3° PLUIMVEE :",{"$f":"V16","v":0},{"$f":"+IF(AP11-AN23<0,0,AP11-AN23)","v":0},null,null,null,null,"overschot geproduceerde NER's (2009) - NER's die aan alle diersoorten kunnen toegekend "]
[null,"x",null,null,"x",{"$f":"'NER 2020'!G16","v":0},{"$f":"'NER 2021'!G16","v":0},null,"Mestkalveren",14.1,null,{"$f":"J12*K12","v":0},null,{"$f":"J12*M12","v":0},"4° ANDERE :",{"$f":"L38","v":0},{"$f":"+IF(P12-F18<0,0,P12-F18)","v":0},null,null,null,null,null,null,null,null,null,null,"(overschotten van toegekende NER's dienen hier bijgehouden te worden  - zie stap 4)",null,null,null,null,null,null,null,null,null,null,null,null,"4° ANDERE :",{"$f":"V17","v":0},{"$f":"+IF(AP12-AN24<0,0,AP12-AN24)","v":0},null,null,null,null,"worden (2009) - overschot NER's die aan alle diersoorten kunnen toegekend worden (2010)"]
[null,null,"x","x",null,"/","/",null,"Runderen jonger dan 1 jaar ",31.7,null,{"$f":"J13*K13","v":0},null,{"$f":"J13*M13","v":0},null,null,null,null,null,null,"Diersoort ","Voorlopig overschot",null,null,null,null,null,null,null,null,null,null,null,null,"Dus: het definitief overschot van de geproduceerde NER's (2010):",null,null,null,{"$f":"+IF(AK5+AK6+AK7+AK8>G5,AK5+AK6+AK7+AK8-G5,0)","v":0}]
[null,null,"x",null,"x",{"$f":"'NER 2020'!G17","v":0},{"$f":"'NER 2021'!G17","v":0},null,"Runderen van 1 jaar tot jonger dan 2 jaar",83,null,{"$f":"J14*K14","v":0},null,{"$f":"J14*M14","v":0},"Stap 2: toewijzing van de NER's die aan 2 diersoorten kunnen toegekend worden. ",null,null,null,null,null,"1° RUNDVEE :",{"$f":"W6","v":0},null,null,null,null,null,"Diersoort ","Resultaat stap 1","Resultaat stap 2",null,null,null,null,null,null,null,null,null,null,"Stap 2: toewijzing van de NER's die aan 2 diersoorten kunnen toegekend worden. ",null,null,null,null,null,null,"NER's die aan alle diersoorten kunnen toegekend worden (2009):",null,null,null,null,{"$f":"F5","v":0}]
[null,null,null,"x","x",{"$f":"'NER 2020'!G18","v":0},{"$f":"'NER 2021'!G18","v":0},null,"c) Andere runderen :",106.5,null,{"$f":"J15*K15","v":0},null,{"$f":"J15*M15","v":0},"Hierbij gebeurt de toewijzing enkel aan de diersoort verschillend van de diersoort 'andere'.",null,null,null,null,null,"2° VARKENS :",{"$f":"W7","v":0},null,null,null,null,null,"1° RUNDVEE :",{"$f":"AD5","v":0},{"$f":"+IF(AC15-G12<0,0,AC15-G12)","v":0},null,null,null,null,"Het overschot van de toegekende NER's (2010):",null,null,null,null,null,"Hierbij gebeurt de toewijzing enkel aan de diersoort verschillend van de diersoort 'andere'.",null,null,null,null,null,null,"overschot NER's die aan alle diersoorten kunnen toegekend worden (2010):",null,null,null,null,{"$f":"AN31","v":0}]
[null,null,null,"x",null,{"$f":"'NER 2020'!G19","v":0},{"$f":"'NER 2021'!G19","v":0},null,"2° VARKENS :",null,null,{"$f":"'dieren 2020'!F19","v":0},null,{"$f":"'dieren 2021'!F19","v":0},"(overschotten van toegekende NER's dienen hier bijgehouden te worden  - zie stap 4)",null,null,null,null,null,"3° PLUIMVEE :",{"$f":"W8","v":0},null,null,null,null,null,"2° VARKENS :",{"$f":"AD6","v":0},{"$f":"+IF(AC16-G14<0,0,AC16-G14)","v":0},null,null,null,null,null,null,null,null,null,null,"(overschotten van toegekende NER's dienen hier bijgehouden te worden  - zie stap 4)"]
[null,null,"x",null,null,{"$f":"'NER 2020'!G20","v":0},{"$f":"'NER 2021'!G20","v":0},null,"Biggen met een gewicht van 7 tot 20 kg ",4.4800000000000004,null,{"$f":"J17*K17","v":0},null,{"$f":"J17*M17","v":0},null,null,null,null,null,null,"4° ANDERE :",{"$f":"W9","v":0},null,null,null,null,null,"3° PLUIMVEE :",{"$f":"AD7","v":0},{"$f":"+IF(AC17-G15<0,0,AC17-G15)","v":0},null,null,null,null,null,null,null,null,null,null,null,null,null,null,null,null,null,"Dus: definitief overschot van de geproduceerde NER's (2009) =",null,null,null,{"$f":"IF(AX5+AX6+AX7+AX8>BA14+BA15,AX5+AX6+AX7+AX8-BA14-BA15,0)","v":0}]
[null,null,null,null,"x",{"$f":"'NER 2020'!G21","v":0},{"$f":"'NER 2021'!G21","v":0},null,"Beren ",38.5,null,{"$f":"J18*K18","v":0},null,{"$f":"J18*M18","v":0},"Diersoort ","Resultaat stap 1","Resultaat stap 2",null,null,null,null,null,null,null,null,null,null,"4° ANDERE :",{"$f":"AD8","v":0},{"$f":"AC18","v":0},null,null,null,null,null,null,null,null,null,null,"Diersoort ","Resultaat stap 1","Resultaat stap 2"]
[null,"x",null,null,null,{"$f":"'NER 2020'!G22","v":0},{"$f":"'NER 2021'!G22","v":0},null,"Zeugen inclusief biggen met een gewicht kleiner dan 7 kg ",38.5,null,{"$f":"J19*K19","v":0},null,{"$f":"J19*M19","v":0},"1° RUNDVEE :",{"$f":"Q9","v":0},{"$f":"+IF(P19-F12<0,0,P19-F12)","v":0},null,null,null,null,null,null,null,null,null,null,null,null,null,null,null,null,null,null,null,null,null,null,null,"1° RUNDVEE :",{"$f":"AQ9","v":0},{"$f":"+IF(AP19-AN25<0,0,AP19-AN25)","v":0}]
[null,null,null,null,null,null,null,null,"Andere varkens van 20 tot 110 kg (tweefazig of driefazig)",18.329999999999998,null,{"$f":"J20*K20","v":0},null,{"$f":"J20*M20","v":0},"2° VARKENS :",{"$f":"Q10","v":0},{"$f":"+IF(P20-F14<0,0,P20-F14)","v":0},null,null,null,null,null,null,null,null,null,null,"Overschot na stap 2:",null,{"$f":"G12-AC15+AD15+G14-AC16+AD16+G15-AC17+AD17","v":0},null,null,null,null,null,null,"Tussenstap 1","Tussenstap 2","Tussenstap 3","Overschot","2° VARKENS :",{"$f":"AQ10","v":0},{"$f":"+IF(AP20-AN26<0,0,AP20-AN26)","v":0}]
[null,null,null,null,null,null,null,null,"Andere varkens van 110 kg en meer",38.5,null,{"$f":"J21*K21","v":0},null,{"$f":"J21*M21","v":0},"3° PLUIMVEE :",{"$f":"Q11","v":0},{"$f":"+IF(P21-F15<0,0,P21-F15)","v":0},null,null,null,"NER's die aan alle diersoorten kunnen toegekend worden:",null,null,null,{"$f":"F5","v":0},null,null,null,null,null,null,null,null,null,"runderen",null,{"$f":"G19-AC5+AD5","v":0},{"$f":"AK21","v":0},0,0,"3° PLUIMVEE :",{"$f":"AQ11","v":0},{"$f":"+IF(AP21-AN27<0,0,AP21-AN27)","v":0},null,null,null,null,"Boete 2009 + 2010:",null,{"$f":"IF(AW20=\"niet gecompenseerd, dus boete voor 2007+2008 =\",\"euro\",\" \")","v":" "}]
[null,null,null,null,null,null,null,null,"3° PLUIMVEE :",null,null,{"$f":"'dieren 2020'!F27","v":0},null,{"$f":"'dieren 2021'!F27","v":0},"4° ANDERE :",{"$f":"Q12","v":0},{"$f":"P22","v":0},null,null,null,"Voorlopig overschot geproduceerde NER's (2009):",null,null,null,{"$f":"V14+V15+V16+V17-Y21","v":0},null,null,"Stap 3: toewijzing van de NER's die aan 3 diersoorten kunnen toegekend worden.",null,null,null,null,null,null,"varkens",null,{"$f":"G17-AC6+AD6","v":0},0,0,0,"4° ANDERE :",{"$f":"AQ12","v":0},{"$f":"AP22","v":0},null,null,null,null,{"$f":"(AZ17*2+(IF('opgelegde NER-boetes'!M13=\"ja\",AM13*2,AM13*1)))","v":0},"euro"]
[null,null,null,null,null,null,null,null,"a) Legrassen : ",null,null,null,null,null,null,null,null,null,null,null,null,null,null,null,null,null,null,"Ook hier gebeurt de toewijzing enkel aan de diersoorten verschillend van de diersoort 'andere'.",null,null,null,null,null,null,"pluimvee",null,{"$f":"G16-AC7+AD7","v":0},0,0,0]
[null,null,null,null,null,null,null,null,"Legkippen [inclusief (groot)ouderdieren] ",1.18,null,{"$f":"J24*K24","v":0},null,{"$f":"J24*M24","v":0},"Overschot na stap 2:",null,{"$f":"F12-P19+Q19+F14-P20+Q20+F15-P21+Q21","v":0},null,null,null,null,null,null,null,null,null,null,"(overschotten van toegekende NER's dienen hier bijgehouden te worden - zie stap 4)",null,null,null,null,null,null,"andere",null,{"$f":"G18-AC8+AD8","v":0},0,0,0,"Overschot na stap 2:",null,{"$f":"AN25-AP19+AQ19+AN26-AP20+AQ20+AN27-AP21+AQ21","v":0}]
[null,null,null,null,null,null,null,null,"Opfokpoeljen van legkippen",0.56999999999999995,null,{"$f":"J25*K25","v":0},null,{"$f":"J25*M25","v":0},null,null,null,null,null,null,null,null,null,null,null,null,null,null,null,null,null,null,null,null,"runderen, andere",null,{"$f":"G12-AC15+AD15","v":0},{"$f":"IF(AND(AJ8-AK8>0,(AQ9-AK25)<=(AQ10-AK26),(AQ9-AK25)<=(AQ11-AK27)),IF((AJ8-AK8)>(AK25-AQ9),AK25-(AK25-AQ9),IF(AK25-(AJ8-AK8)>0,AK25-(AJ8-AK8),0)),AK25)","v":0},{"$f":"IF(AND(AJ8-AK8-(SUM(AK25:AK30))+SUM(AL25:AL30)>0,OR(AND((AQ9-AK25)<(AQ10-AK26),(AQ9-AK25)>(AQ11-AK27)),AND((AQ9-AK25)<(AQ11-AK27),(AQ9-AK25)>(AQ10-AK26)))),IF((AJ8-AK8-(SUM(AK25:AK30))+SUM(AL25:AL30))>(AL25-AQ9),AL25-(AL25-AQ9),IF(AL25-(AJ8-AK8-(SUM(AK25:AK30))+SUM(AL25:AL30))>0,AL25-(AJ8-AK8-(SUM(AK25:AK30))+SUM(AL25:AL30)),0)),AL25)","v":0},{"$f":"IF(AJ8-AK8-(SUM(AK25:AK30))+SUM(AM25:AM30)>0,IF(AM25-(AJ8-AK8-(SUM(AK25:AK30))+SUM(AM25:AM30))>0,AM25-(AJ8-AK8-(SUM(AK25:AK30))+SUM(AM25:AM30)),0),AM25)","v":0}]
[null,null,null,null,null,null,null,null,"b) Vleesrassen : ",null,null,null,null,null,"Stap 3: toewijzing van de NER's die aan 3 diersoorten kunnen toegekend worden.",null,null,null,null,null,null,null,null,null,null,null,null,"Diersoort ","Resultaat stap 2","Resultaat stap 3",null,null,null,null,"varkens, andere",null,{"$f":"G14-AC16+AD16","v":0},{"$f":"IF(AND(AJ8-AK8-AK25+AL25>0,(AQ10-AK26)<=(AQ11-AK27),(AQ10-AK26)<=(AQ9-AK25)),IF((AJ8-AK8-AK25+AL25)>(AK26-AQ10),AK26-(AK26-AQ10),IF(AK26-(AJ8-AK8-AK25+AL25)>0,AK26-(AJ8-AK8-AK25+AL25),0)),AK26)","v":0},{"$f":"IF(AND(AJ8-AK8-(SUM(AK25:AK30))+SUM(AL25:AL30)-AL25+AM25>0,OR(AND((AQ10-AK26)<(AQ11-AK27),(AQ10-AK26)>(AQ9-AK25)),AND((AQ10-AK26)<(AQ9-AK25),(AQ10-AK26)>(AQ11-AK27)))),IF((AJ8-AK8-(SUM(AK25:AK30))+SUM(AL25:AL30)-AL25+AM25)>(AL26-AQ10),AL26-(AL26-AQ10),IF(AL26-(AJ8-AK8-(SUM(AK25:AK30))+SUM(AL25:AL30)-AL25+AM25)>0,AL26-(AJ8-AK8-(SUM(AK25:AK30))+SUM(AL25:AL30)-AL25+AM25),0)),AL26)","v":0},{"$f":"IF(AJ8-AK8-(SUM(AK25:AK30))+SUM(AM25:AM30)-AM25+AN25>0,IF(AM26-(AJ8-AK8-(SUM(AK25:AK30))+SUM(AM25:AM30)-AM25+AN25)>0,AM26-(AJ8-AK8-(SUM(AK25:AK30))+SUM(AM25:AM30)-AM25+AN25),0),AM26)","v":0},"Stap 3: toewijzing van de NER's die aan 3 diersoorten kunnen toegekend worden."]
[null,null,null,null,null,null,null,null,"Slachtkuikens ",0.91,null,{"$f":"J27*K27","v":0},null,{"$f":"J27*M27","v":0},"Ook hier gebeurt de toewijzing enkel aan de diersoorten verschillend van de diersoort 'andere'.",null,null,null,null,null,null,null,null,null,null,null,null,"1° RUNDVEE :",{"$f":"AD15","v":0},{"$f":"IF(G8+G9=0,AC27,IF(G8>0,IF(AC27-G8>0,AC27-G8,0),(IF(G9>0,IF(AC27-G9>0,AC27-G9,0)))))","v":0},null,null,null,null,"pluimvee, andere",null,{"$f":"G15-AC17+AD17","v":0},{"$f":"IF(AND(AJ8-AK8-AK25+AL25-AK26+AL26>0,(AQ11-AK27)<=(AQ9-AK25),(AQ11-AK27)<=(AQ10-AK26)),IF((AJ8-AK8-AK25+AL25-AK26+AL26)>(AK27-AQ11),AK27-(AK27-AQ11),IF(AK27-(AJ8-AK8-AK25+AL25-AK26+AL26)>0,AK27-(AJ8-AK8-AK25+AL25-AK26+AL26),0)),AK27)","v":0},{"$f":"IF(AND(AJ8-AK8-(SUM(AK25:AK30))+SUM(AL25:AL30)-AL25+AM25-AL26+AM26>0,OR(AND((AQ11-AK27)<(AQ9-AK25),(AQ11-AK27)>(AQ10-AK26)),AND((AQ11-AK27)<(AQ10-AK26),(AQ11-AK27)>(AQ9-AK25)))),IF((AJ8-AK8-(SUM(AK25:AK30))+SUM(AL25:AL30)-AL25+AM25-AL26+AM26)>(AL27-AQ11),AL27-(AL27-AQ11),IF(AL27-(AJ8-AK8-(SUM(AK25:AK30))+SUM(AL25:AL30)-AL25+AM25-AL26+AM26)>0,AL27-(AJ8-AK8-(SUM(AK25:AK30))+SUM(AL25:AL30)-AL25+AM25-AL26+AM26),0)),AL27)","v":0},{"$f":"IF(AJ8-AK8-(SUM(AK25:AK30))+SUM(AM25:AM30)-AM25+AN25-AM26+AN26>0,IF(AM27-(AJ8-AK8-(SUM(AK25:AK30))+SUM(AM25:AM30)-AM25+AN25-AM26+AN26)>0,AM27-(AJ8-AK8-(SUM(AK25:AK30))+SUM(AM25:AM30)-AM25+AN25-AM26+AN26),0),AM27)","v":0},"Ook hier gebeurt de toewijzing enkel aan de diersoorten verschillend van de diersoort 'andere'."]
[null,null,null,null,null,null,null,null,"Slachtkuikenouderdieren ",1.91,null,{"$f":"J28*K28","v":0},null,{"$f":"J28*M28","v":0},"(overschotten van toegekende NER's dienen hier bijgehouden te worden - zie stap 4)",null,null,null,null,null,null,null,null,null,null,null,null,"2° VARKENS :",{"$f":"AD16","v":0},{"$f":"IF(AND(G8-AC27+AD27<=0,G7=0),AC28,IF(G8-AC27+AD27>0,IF(AC28-(G8-AC27+AD27)>0,AC28-(G8-AC27+AD27),0),(IF(G7>0,IF(AC28-G7>0,AC28-G7,0)))))","v":0},null,null,null,null,"runderen, varkens, andere",null,0,0,0,0,"(overschotten van toegekende NER's dienen hier bijgehouden te worden - zie stap 4)"]
[null,null,null,null,null,null,null,null,"Opfokpoeljen van slachtkuikenouderdieren",0.74,null,{"$f":"J29*K29","v":0},null,{"$f":"J29*M29","v":0},null,null,null,null,null,null,null,null,null,null,null,null,null,"3° PLUIMVEE :",{"$f":"AD17","v":0},{"$f":"IF(AND(G9-AC27+AD27<=0,G7-AC28+AD28<=0),AC29,IF(G9-AC27+AD27>0,IF(AC29-(G9-AC27+AD27)>0,AC29-(G9-AC27+AD27),0),(IF(G7-AC28+AD28>0,IF(AC29-(G7-AC28+AD28)>0,AC29-(G7-AC28+AD28),0)))))","v":0},null,null,null,null,"runderen, pluimvee, andere",null,0,0,0,0]
[null,null,null,null,null,null,null,null,"c) Struisvogels : ",null,null,null,null,null,"combinatie r+v+a ",{"$f":"IF(F8>0,TRUE,FALSE)","v":false},"eerst r",{"$f":"IF(AND(F8>0,G5+G8+G9+G12+G19-N5<G5+G7+G8+G14+G17-N16),TRUE,FALSE)","v":false},null,null,null,null,null,null,null,null,null,"4° ANDERE :",{"$f":"AD18","v":0},{"$f":"AC30","v":0},null,null,null,null,"varkens, pluimvee, andere",null,0,0,0,0]
[null,null,null,null,null,null,null,null,"Struisvogels fokdieren ",27.8,null,{"$f":"J31*K31","v":0},null,{"$f":"J31*M31","v":0},null,null,"eerst v",{"$f":"IF(AND(F8>0,G5+G8+G9+G12+G19-N5>G5+G7+G8+G14+G17-N16),TRUE,FALSE)","v":false},null,null,null,null,null,null,null,null,null,null,null,null,null,null,null,null,"alle diersoorten",null,{"$f":"G5-AK5-AK6-AK7-AK8+AM13","v":0},{"$f":"AK31","v":0},{"$f":"AL31","v":0},{"$f":"AM31","v":0},"Diersoort ","Resultaat stap 2","Resultaat stap 3"]
[null,null,null,null,null,null,null,null,"Struisvogels slachtdieren ",13.1,null,{"$f":"J32*K32","v":0},null,{"$f":"J32*M32","v":0},"combinatie r+p+a ",{"$f":"IF(F9>0,TRUE,FALSE)","v":false},"eerst r",{"$f":"IF(AND(F9>0,G5+G8+G9+G12+G19-N5<G5+G7+G9+G15+G16-N22),TRUE,FALSE)","v":false},null,null,null,null,null,null,null,null,null,"Overschot na stap 3:",null,{"$f":"AD20+G8+G9+G7-AC27-AC28-AC29-AC30+AD27+AD28+AD29+AD30","v":0},null,null,null,null,null,null,null,null,null,null,"1° RUNDVEE :",{"$f":"AQ19","v":0},{"$f":"IF(AN28+AN29=0,AP32,IF(AN28>0,IF(AP32-AN28>0,AP32-AN28,0),(IF(AN29>0,IF(AP32-AN29>0,AP32-AN29,0)))))","v":0}]
[null,null,null,null,null,null,null,null,"Struisvogels (van 0 tot 3 maand)",5.2,null,{"$f":"J33*K33","v":0},null,{"$f":"J33*M33","v":0},null,null,"eerst p",{"$f":"IF(AND(F9>0,G5+G8+G9+G12+G19-N5>G5+G7+G9+G15+G16-N22),TRUE,FALSE)","v":false},null,null,null,null,null,null,null,null,null,null,null,null,null,null,null,null,null,null,null,null,null,null,"2° VARKENS :",{"$f":"AQ20","v":0},{"$f":"IF(AND(AN28-AP32+AQ32<=0,AN30=0),AP33,IF(AN28-AP32+AQ32>0,IF(AP33-(AN28-AP32+AQ32)>0,AP33-(AN28-AP32+AQ32),0),(IF(AN30>0,IF(AP33-AN30>0,AP33-AN30,0)))))","v":0}]
[null,null,null,null,null,null,null,null,"d) Kalkoenen :",null,null,null,null,null,"combinatie v+p+a ",{"$f":"IF(F7>0,TRUE,FALSE)","v":false},"eerst v",{"$f":"IF(AND(F7>0,G5+G7+G8+G14+G17-N16<G5+G7+G9+G15+G16-N22),TRUE,FALSE)","v":false},null,null,null,null,null,null,null,null,null,null,null,null,null,null,null,null,null,null,null,null,null,null,"3° PLUIMVEE :",{"$f":"AQ21","v":0},{"$f":"IF(AND(AN29-AP32+AQ32<=0,AN30-AP33+AQ33<=0),AP34,IF(AN29-AP32+AQ32>0,IF(AP34-(AN29-AP32+AQ32)>0,AP34-(AN29-AP32+AQ32),0),(IF(AN30-AP33+AQ33>0,IF(AP34-(AN30-AP33+AQ33)>0,AP34-(AN30-AP33+AQ33),0)))))","v":0}]
[null,null,null,null,null,null,null,null,"Kalkoenen slachtdieren",2.99,null,{"$f":"J35*K35","v":0},null,{"$f":"J35*M35","v":0},null,null,"eerst p",{"$f":"IF(AND(F7>0,G5+G7+G8+G14+G17-N16>G5+G7+G9+G15+G16-N22),TRUE,FALSE)","v":false},null,null,null,null,null,null,null,null,null,null,null,null,null,null,null,null,null,null,null,null,null,null,"4° ANDERE :",{"$f":"AQ22","v":0},{"$f":"AP35","v":0}]
[null,null,null,null,null,null,null,null,"Kalkoenen ouderdieren",3.47,null,{"$f":"J36*K36","v":0},null,{"$f":"J36*M36","v":0}]
[null,null,null,null,null,null,null,null,"e) Ander pluimvee :",0.43,null,{"$f":"J37*K37","v":0},null,{"$f":"J37*M37","v":0},"Diersoort ","Resultaat stap 2","Tussenstap","Resultaat stap 3",null,null,null,null,null,null,null,null,null,null,null,null,null,null,null,null,null,null,null,null,null,null,"Overschot na stap 3:",null,{"$f":"AQ24+AN28+AN29+AN30-AP32-AP33-AP34-AP35+AQ32+AQ33+AQ34+AQ35","v":0}]
[null,null,null,null,null,null,null,null,"4° ANDERE :",null,null,{"$f":"'dieren 2020'!F41","v":0},null,{"$f":"'dieren 2021'!F41","v":0},"1° RUNDVEE :",{"$f":"Q19","v":0},{"$f":"IF(AND(R30=FALSE,R32=FALSE),P38,IF(R30=TRUE,IF(P38-F8>0,P38-F8,0),IF(R32=TRUE,IF(P38-F9>0,P38-F9,0))))","v":0},{"$f":"IF(OR(R30=TRUE,R32=TRUE),Q38,IF(R31=TRUE,IF(F8-P39+Q39>0,IF(Q38-(F8-P39+Q39)>0,Q38-(F8-P39+Q39),0),Q38),(IF(R33=TRUE,IF(F9-P40+Q40>0,IF(Q38-(F9-P40+Q40)>0,Q38-(F9-P40+Q40),0),Q38),Q38))))","v":0}]
[null,null,null,null,null,null,null,null,"a) Konijnen : ",null,null,null,null,null,"2° VARKENS :",{"$f":"Q20","v":0},{"$f":"IF(AND(R31=FALSE,R34=FALSE),P39,IF(R31=TRUE,IF(P39-F8>0,P39-F8,0),IF(R34=TRUE,IF(P39-F7>0,P39-F7,0))))","v":0},{"$f":"IF(OR(R31=TRUE,R34=TRUE),Q39,IF(R30=TRUE,IF(F8-P38+Q38>0,IF(Q39-(F8-P38+Q38)>0,Q39-(F8-P38+Q38),0),Q39),(IF(R35=TRUE,IF(F7-P40+Q40>0,IF(Q39-(F7-P40+Q40)>0,Q39-(F7-P40+Q40),0),Q39),Q39))))","v":0}]
[null,null,null,null,null,null,null,null,"Gesloten bedrijven (per vrouwelijk konijn) ",12.18,null,{"$f":"J40*K40","v":0},null,{"$f":"J40*M40","v":0},"3° PLUIMVEE :",{"$f":"Q21","v":0},{"$f":"IF(AND(R33=FALSE,R35=FALSE),P40,IF(R33=TRUE,IF(P40-F9>0,P40-F9,0),IF(R35=TRUE,IF(P40-F7>0,P40-F7,0))))","v":0},{"$f":"IF(OR(R33=TRUE,R35=TRUE),Q40,IF(R32=TRUE,IF(F9-P38+Q38>0,IF(Q40-(F9-P38+Q38)>0,Q40-(F9-P38+Q38),0),Q40),(IF(R34=TRUE,IF(F7-P39+Q39>0,IF(Q40-(F7-P39+Q39)>0,Q40-(F7-P39+Q39),0),Q40),Q40))))","v":0}]
[null,null,null,null,null,null,null,null,"Vetmesterij (per dier)",1.1100000000000001,null,{"$f":"J41*K41","v":0},null,{"$f":"J41*M41","v":0},"4° ANDERE :",{"$f":"Q22","v":0},{"$f":"P41","v":0},{"$f":"Q41","v":0}]
[null,null,null,null,null,null,null,null,"Kwekerij (per vrouwelijk konijn)",5.03,null,{"$f":"J42*K42","v":0},null,{"$f":"J42*M42","v":0}]
[null,null,null,null,null,null,null,null,"b) Geiten en schapen :",null,null,null,null,null,"Overschot na stap 3:",null,{"$f":"Q24+F8+F9+F7-P38-P39-P40-P41+R38+R39+R40+R41","v":0}]
[null,null,null,null,null,null,null,null,"Geiten en schapen jonger dan 1 jaar ",6.08,null,{"$f":"J44*K44","v":0},null,{"$f":"J44*M44","v":0}]
[null,null,null,null,null,null,null,null,"Geiten en schapen ouder dan 1 jaar ",14.64,null,{"$f":"J45*K45","v":0},null,{"$f":"J45*M45","v":0}]
[null,null,null,null,null,null,null,null,"c) Nertsen :"]
[null,null,null,null,null,null,null,null,"Gesloten bedrijven (per moederdier)",4.82,null,{"$f":"J47*K47","v":0},null,{"$f":"J47*M47","v":0}]
[null,null,null,null,null,null,null,null,"Vetmesterij (per dier) ",1.56,null,{"$f":"J48*K48","v":0},null,{"$f":"J48*M48","v":0}]
[null,null,null,null,null,null,null,null,"Kwekerij (per moederdier)",1.78,null,{"$f":"J49*K49","v":0},null,{"$f":"J49*M49","v":0}]
[null,null,null,null,null,null,null,null,"d) Paarden :"]
[null,null,null,null,null,null,null,null,"Paarden (> 600 kg) ",95,null,{"$f":"J51*K51","v":0},null,{"$f":"J51*M51","v":0}]
[null,null,null,null,null,null,null,null,"Paarden en pony’s (200-600 kg) ",71,null,{"$f":"J52*K52","v":0},null,{"$f":"J52*M52","v":0}]
[null,null,null,null,null,null,null,null,"Paarden en pony’s (< 200 kg)",47,null,{"$f":"J53*K53","v":0},null,{"$f":"J53*M53","v":0}]

{"sheet":"Blad1","index":10,"n_rows":0,"n_cols":0,"rows_kept":0,"cut":false,"hidden":true,"merged":[]}